Cogmind - Beta 16 @@@ ROGUE MODE // 2025.11.27 @ 06:31:48 Player: Red Box Result: Destroyed by G-34 Mercenary with Small Laser Performance ------------- Evolutions (0) 0 Regions Visited (1) 200 Robots Destroyed (22) 110 Value Destroyed (470) 470 Prototype IDs (0) 0 Alien Tech Used (0) 0 Bonus (0) 0 TOTAL SCORE: 780 Bonus ------- None Cogmind --------- Core Integrity 0/250 Matter 300/300 Energy 242/250 System Corruption 0% Temperature Cool (12) Movement Walking (190) Ox1 Location -10/Materials Parts ------- > --- POWER (1) -------- Ion Engine > --- PROPULSION (2) --- Aluminum Leg Aluminum Leg > --- UTILITY (2) ------ Heat Sink Large Storage Unit > --- WEAPON (2) ------- EM Pulse Gun Light Assault Rifle > --- INVENTORY (15) --- Ion Engine Light Treads Light Treads Aluminum Leg Aluminum Leg Wheel Compact Wheel Compact Wheel High-capacity Storage Unit Light Armor Plating Mining Laser Hammer Peak State ------------ > --- POWER ------------ Ion Engine > --- PROPULSION ------- Aluminum Leg Aluminum Leg > --- UTILITY ---------- Large Storage Unit Improved Terrain Scanner > --- WEAPON ----------- Small Laser Small Laser > --- INVENTORY -------- Ion Engine Light Ion Engine Light Treads Light Treads Aluminum Leg Wheel Compact Wheel High-capacity Storage Unit Light Assault Rifle Mining Laser [Rating: 10] Favorites ----------- Power Ion Engine Engine Ion Engine Propulsion Aluminum Leg Leg Aluminum Leg Utility Improved Terrain Scanner Device Improved Terrain Scanner Storage Large Storage Unit Weapon Small Laser Energy Gun Small Laser Ballistic Gun Light Assault Rifle Build | -11 -10 ------- Run | Yrd Mat Slots Evolved . | . . Power . | . . Propulsion . | . . Utility . | . . Weapon . | . . Parts Attached 13 | 7 6 Power 2 | 1 1 Engine 2 | 1 1 Core . | . . Reactor . | . . Propulsion 3 | 2 1 Treads . | . . Leg 3 | 2 1 Wheel . | . . Hover . | . . Flight . | . . Utility 4 | 2 2 Device 2 | 1 1 Storage 2 | 1 1 Processor . | . . Hackware . | . . Protection . | . . Artifact . | . . Weapon 4 | 2 2 Energy Gun 3 | 2 1 Energy Cannon . | . . Ballistic Gun 1 | . 1 Ballistic Cannon . | . . Launcher . | . . Special Weapon . | . . Impact Weapon . | . . Slashing Weapon . | . . Piercing Weapon . | . . Special Melee Weapon . | . . Unidentified Prototypes . | . . Parts Lost 3 | . 3 Power . | . . Propulsion 1 | . 1 Utility 1 | . 1 Weapon 1 | . 1 Highest Loss Streak 2 | . 2 To Critical Strikes . | . . Average Backups 10 | 5 11 Power . | . 1 Propulsion 5 | 3 5 Utility 1 | . 2 Weapon 2 | 1 2 Tool/Special . | . . Unused Backups 13 | . 13 Power 2 | . 2 Propulsion 7 | . 7 Utility 2 | . 2 Weapon 2 | . 2 Tool/Special . | . . Average Slot Usage (%) 99 | . 99 Engine 14 | . 14 Leg 27 | . 27 Device 13 | . 13 Storage 14 | . 14 Energy Gun 27 | . 27 Peak Build Rating 10 | 9 10 Average Rating 9 | 5 9 On Entrance 4 | . 9 Avg Prop Armor Cover (%) . | . . Naked Turns . | . . Heaviest Build 29 | 13 29 Greatest Support 20 | 20 20 Greatest Overweight (x) 2 | 2 2 Average Overweight (x) . | . . Largest Inventory Capacity 15 | 8 15 Average Capacity 13 | 7 14 Most Carried 15 | 7 15 Average Carried 10 | 5 11 Final Capacity 15 | 8 15 Final Carried 12 | 7 12 Class Distribution -------------------- 100% | Mutant Dominant Class ---------------- Mutant | -10/Materials Resources | -11 -10 ----------- Run | Yrd Mat Matter Collected 341 | 270 71 Remotely . | . . Salvage Created 704 | 132 572 Parts 44 | 12 32 Haulers Intercepted . | . . Recyclers Shooed 2 | 1 1 Parts Field Recycled . | . . Retrieved Matter . | . . Parts Self-Destructed . | . . Prevented . | . . Parts Restored . | . . Kills | -11 -10 ------- Run | Yrd Mat Combat Hostiles Destroyed 12 | . 12 Guns 12 | . 12 Classes Destroyed 5 | 2 3 Tunneler 5 | 5 . Recycler 2 | 1 1 Watcher 3 | . 3 Swarmer 3 | . 3 Grunt 9 | . 9 Best Kill Streak 3 | 3 3 Combat Bots Only 3 | . 3 Max Kills in Single Turn 1 | 1 1 Gunslinging . | . . Exploded . | . . Melee . | . . Uniques/NPCs Destroyed . | . . Combat | -11 -10 -------- Run | Yrd Mat Hostile Shots Fired 81 | . 81 Missed 15 | . 15 Hits 66 | . 66 Projectile 66 | . 66 Critical Strikes 1 | . 1 Damage Taken 797 | . 797 Core 255 | . 255 Absorbed by Shields . | . . Core Remaining (%) 100 | 100 . Volleys Fired 80 | 15 65 Largest 2 | 2 2 Hottest 80 | 80 80 Shots Fired 160 | 30 130 Gun 160 | 30 130 Cannon . | . . Launcher . | . . Special . | . . Kinetic 11 | . 11 Thermal 138 | 30 108 Explosive . | . . Electromagnetic 11 | . 11 Robot Hit Streak 11 | 8 11 Robot Miss Streak 6 | 2 6 Penetration Max . | . . Secondary Targets 1 | . 1 Max Gunslinging Chain 1 | . 1 Shots Hit Robots 96 | 20 76 Core Hits 38 | 7 31 Critical Kills . | . . Critical Parts Destroyed . | . . Critical Strikes . | . . Melee Attacks . | . . Impact . | . . Slashing . | . . Piercing . | . . Sneak Attacks . | . . Combat Hostiles . | . . Follow-up Attacks . | . . Damage Inflicted 1092 | 219 873 Guns 1092 | 219 873 Cannons . | . . Explosions . | . . Melee . | . . Ramming . | . . Kinetic 81 | . 81 Thermal 911 | 219 692 Explosive . | . . Electromagnetic 100 | . 100 Impact . | . . Slashing . | . . Piercing . | . . Highest Corruption . | . . Average Corruption . | . . Corruption Purged . | . . Corruption Blocked . | . . Overload Shots . | . . Overflow Damage . | . . Projectiles . | . . Explosions . | . . Melee . | . . Knockbacks . | . . Impact . | . . Kinetic . | . . Secondary . | . . Self-Inflicted Damage . | . . Shots . | . . Rammed . | . . Targets Rammed . | . . Kicked . | . . Crushed . | . . Highest Temperature 234 | 54 234 Average Temperature 44 | 22 49 Received Heat Transfer 414 | . 414 Siege Activations . | . . Martial Activations . | . . Shielding Activations . | . . Robots Disrupted . | . . Combat Hostiles . | . . Robots Corrupted . | . . Combat Hostiles . | . . Parts Fried . | . . Impact Corruptions . | . . Robots Melted . | . . Combat Hostiles . | . . Parts Melted 1 | . 1 Heat Transferred 2100 | 500 1600 Parts Sabotaged . | . . Parts Stolen . | . . Parts Stripped . | . . Power Chain Reactions . | . . Alert | -11 -10 ------- Run | Yrd Mat Maximum Alert Level . | . . Low Security (%) 100 | 100 100 Level 1 . | . . Level 2 . | . . Level 3 . | . . Level 4 . | . . Level 5 . | . . High Security . | . . Max Security . | . . Peak Influence 70 | 10 70 Initial 3 | . 3 Average 15 | 1 17 Influence Increases 393 | 30 363 Destroy 0b10 Robot/C 240 | . 240 Destroy 0b10 Robot/NC 50 | 30 20 Destroy Leader 56 | . 56 Successful Hack 17 | . 17 Lose Combat Pursuer 30 | . 30 Influence Decreases 338 | 25 313 Entered New Map 2 | . 2 Time Decay 326 | 25 301 Lost Part 10 | . 10 Squads Dispatched 1 | . 1 Investigation 1 | . 1 Extermination . | . . Reinforcement . | . . Assault . | . . Garrison . | . . Intercept . | . . Searches Triggered . | . . Construction Impeded . | . . Haulers Reinforced . | . . Active Scanning Responses . | . . Cargo Convoy Interrupts . | . . Stealth | -11 -10 --------- Run | Yrd Mat Distress Signals 3 | . 3 Communications Jammed . | . . Distress Signals . | . . Times Spotted 29 | . 29 Peak Tracking Total 5 | . 5 Tactical Retreats 2 | . 2 Traps | -11 -10 ------- Run | Yrd Mat Traps Triggered . | . . Indirectly . | . . Trap Hack Attempts . | . . Triggered . | . . Disarmed . | . . Reprogrammed . | . . Reused . | . . Traps Extracted . | . . Installed . | . . Triggered . | . . Machines | -11 -10 ---------- Run | Yrd Mat Machines Disabled . | . . Max in Single Turn . | . . Machines Repaired . | . . Machines Dismantled . | . . Machines Sabotaged . | . . Overloaded Fab Kills . | . . Hacking | -11 -10 --------- Run | Yrd Mat Machines Accessed 6 | . 6 Terminals 4 | . 4 Fabricators . | . . Repair Stations . | . . Recycling Units 2 | . 2 Scanalyzers . | . . Garrison Access . | . . Total Hacks 21 | . 21 Successful 11 | . 11 Failed 10 | . 10 Catastrophic 1 | . 1 Database Lockouts . | . . Manual 14 | . 14 Terminals 13 | . 13 Fabricators . | . . Repair Stations . | . . Recycling Units 8 | . 8 Scanalyzers . | . . Garrison Access . | . . Terminal Hacks 3 | . 3 Terminal Index 1 | . 1 Locate Traps 2 | . 2 Fabricator Hacks . | . . Repair Station Hacks . | . . Recycling Unit Hacks 2 | . 2 Retrieve Components 2 | . 2 Scanalyzer . | . . Garrison Access Hacks . | . . Unauthorized Hacks 6 | . 6 Terminals 4 | . 4 Botnet 1 | . 1 Operators 1 | . 1 Skim 2 | . 2 Fabricators . | . . Repair Stations . | . . Recycling Units 2 | . 2 Reject 1 | . 1 Mask 1 | . 1 Scanalyzers . | . . Garrison Access . | . . Data Cores Recovered . | . . Used . | . . Hacking Detections 6 | . 6 Full Trace Events 1 | . 1 Feedback Events . | . . Feedback Blocked . | . . Robot Schematics Acquired . | . . Robots Built . | . . Authchips . | . . Time . | . . Total Robot Build Rating . | . . Part Schematics Acquired . | . . Parts Built . | . . Authchips . | . . Time . | . . Total Part Build Rating . | . . Part Studies Acquired . | . . Parts Repaired . | . . Time . | . . Parts Recycled . | . . Recycled Matter . | . . Retrieved Matter . | . . Retrieved Components 8 | . 8 Parts Scanalyzed . | . . Part Schematics Acquired . | . . Parts Damaged . | . . Bothacking | -11 -10 ------------ Run | Yrd Mat Used RIF Installer . | . . Robots Hacked . | . . Non-combat . | . . Combat . | . . Robot Hacks Applied . | . . Relay Couplers Released . | . . Fabnet Peak Effective % . | . . Robots Rewired . | . . Allies Hacked . | . . Hacks Repelled . | . . Allies | -11 -10 -------- Run | Yrd Mat Total Allies . | . . Largest Group . | . . Highest-Rated Group . | . . Highest-Rated Ally . | . . Total Orders . | . . Ally Attacks . | . . Total Damage . | . . Kills . | . . Allies Corrupted . | . . Allies Melted . | . . Intel | -11 -10 ------- Run | Yrd Mat Active Infowar (turns) 1031 | 8 1023 Terrain 1031 | 8 1023 Robot Analysis Total . | . . Derelict Logs Recovered . | . . Drone Launches . | . . Drone Recoveries . | . . Exploration | -11 -10 ------------- Run | Yrd Mat Turns Passed 1277 | 195 1082 Spaces Moved 559 | 112 447 Core 7 | 7 . Treads . | . . Legs 552 | 105 447 Wheels . | . . Hover . | . . Flight . | . . Fastest Speed 50 | 50 120 Average Speed 170 | 116 183 Slowest Speed 260 | 150 260 Overloaded Moves . | . . Propulsion Burnouts . | . . Robots Hopped . | . . Potential Cave-ins . | . . Cave-ins Triggered . | . . Exploration Rate (%) 32 | 5 60 Regions Visited 1 Branch Regions . Pre-discovered Areas . | . . Known Exits Taken . | . . Unknown Exits Taken 1 | 1 . Scrap Searched . | . . Spaces Dug . | . . Terrain Destroyed . | . . Melee . | . . Projectile . | . . AOE . | . . Terrain Rammed . | . . Walls Destroyed . | . . Machines Disabled . | . . Actions | -11 -10 --------- Run | Yrd Mat Total 725 | 143 582 Wait 54 | 3 51 Move 558 | 111 447 Hop . | . . Pick Up 16 | 7 9 Fast Attach 8 | 7 1 Attach 2 | . 2 Detach . | . . Swap 3 | . 3 Drop 4 | . 4 Fire 80 | 15 65 Melee . | . . Ram . | . . Kick . | . . Crush . | . . Escape Stasis . | . . Rewire . | . . Trap . | . . Miscellaneous . | . . Route ------- -11/Scrapyard -10/Materials (discovered 3 exits: [*Mat x2] / [*Min]) History --------- Turn | Location | Event 51 | -11/Scrapyard | Discovered new exit (range 12) 196 | -11/Scrapyard | Entered Materials 302 | -10/Materials | Build established: Mutant 452 | -10/Materials | Discovered new exit (range 16) 603 | -10/Materials | Core integrity fell below 50% 849 | -10/Materials | Discovered new exit (range 16) 1171 | -10/Materials | Discovered new exit (range 14) 1239 | -10/Materials | Core integrity fell below 20% 1278 | -10/Materials | Destroyed by G-34 Mercenary with Small Laser Last Messages --------------- 01219_ Imp. Terrain Scanner destroyed. 01224_ K-01 Serf cleans the Processing Tank. 01227_ Dropped Sml. Laser. 01235_ K-01 Serf cleans the Processing Tank. 01244_ G-47 Trooper destroyed. 01249_ R-06 Scavenger collects Sml. Laser. 01250_ Acquired 36 matter. 01253_ R-06 Scavenger collects Corrupted Aluminum Leg. 01254_ W-16 Scout destroyed. 01258_ R-06 Scavenger collects Corrupted Imp. Heat Sink. 01266_ Acquired 1 matter. 01270_ Critical hit (Burn: +37). 01272_ Acquired 1 matter. 01277_ G-47 Trooper destroyed. 01277_ Switching to secondary target: G-34 Mercenary. 01277_ K-01 Serf collects debris. 01278_ Acquired 1 matter. Map ----- +----------------------------------------------------+ | #??# ^^ ||| ##?###????############????#????????# | | #### || #?#??###???# ##????????????? | | || ############ #?????#?#?????? | | % + """ """ ##????????????? | | ^ ^ ######### """ """ #?##??????#???# | | #### #?????#?# """ """ #??#???#####??? | | #### !!! #???????# """ """ #???#??# #??? | | # !!! ##????### """ """ #?#???## #??? | | T" + !!! #????##?# #??????# #??# | | # #############+############ #??? | | | # %* #??? | | # ###### #############= #??# | | #########?#?# # # * #??? | | ?#????####??# + """"" !###########+##### #??? | | ? ??? ????? # # """"" ###?????# [% ## #?#? | | ??? ????????# # """"" ##??????# !!!## #??? | | "???"???????# # ##??#???#" !!!## #??? | | ? ????? ???# #########+###??????##T ! !## #??? | | "????"??????+ ######### ##??#?????#" ## #??? | | ??????? ?# ## #%#?????????# ## #??? | | ####??#??#??# ## """ # #?#?????#?######### #?#? | | #?##??????? # """ + #??? ??? ? ???#??## ##?? | | #?????????" # """ # #????????? ?#????# #?? | | #????#??#?? # # ###??????? ???#??# T #?? | | #??#???#??" < # """ #* #??? ??????????# ### | | #?????????| # """ /@ +? ? ??? ????####+###? | | #?????????" # """ #= #?????????##?# ! ## | | #??##????? # # #????????????# "" #? | | ##???#??????? ## """ # #???? ???? ??# Y" #? | | ?? ??????????????# """ # #??????? ????# "" #? | | ?? ???? ?????? ??# """ # #??????#?????# #? | | ?????????????????#[ # #??????#?????# ! #? | | ?????"?? ????????##?##### k#???????#????########? | | ????????????????????????# #????????????????????? | | ?? ????????????????????? #????????????????????? | | ????????????????????????? #????????????????????? | | ? ?????????????????????? g%#???????????#????????? | | ?????????????????????????g =#??????????#?????????? | | ???????????????????????? #????????????????????? | | ????????????????????????? #????????????????????? | | ???"????????????????????? ??????????????????#??? | | ???#?????????????????????????????????????????????? | | #????????????????????????????????????????????????? | | ?????????????????????????????????????????????????? | | ?????????????????????????????????????????????????? | | ?????????????????????????????????????????????????? | | ?????????????????????????????????????????????????? | | ?????????????????????????????????????????????????? | | ?????????????????????????????????????????????????? | | ?????????????????????????????????????????????????? | +----------------------------------------------------+ Best States ------------- Heat Dissipation 35 Energy Generation 10 Energy Capacity 250 Matter Stores 300 Matter Capacity 300 Sight Range 16 Terrain Scan Range 16 Terrain Scan Density 10 Evasion (%) 55 Item Schematics ----------------- None Robot Schematics ------------------ None Fabricated ------------ Nothing Repaired ---------- Nothing Studied --------- None Alien Tech Used ----------------- None Achievements -------------- None Challenges ------------ None Game ------ Seed IntegratedDisassembledArray Manual? 0 Play Time 00:09:28 Cumulative 734.7 hours Start 2025.11.27 @ 06:25:01 End 2025.11.27 @ 06:31:48 Sessions 1 Manual Loads 0 Difficulty Rogue Special Mode None Game No. 513 Rogue 513 Adventurer 0 Explorer 0 Win Type - Total 1 Types 1/0/0/0/0/0/0/0/0/0 Lore% 71 Gallery% 68 Achievement% 47 Wizard Run 0 Options --------- Layout 1 ASCII 0 Keyboard 0 Movement Mouse Keybinds 0 Fullscreen 1 Font 20/SmallcapsGlow Map View 54x42 Zoom Use 0% Tactical HUD 1 Map Filters NONE Filters NONE Steam 1 RUN: 971a2b10-e63a-4aea-adfb-ad78cc2da489